fUST/lending_fUST_20250907
["ID","MTS","AMOUNT","RATE_DAILY","PERIOD"]
[384004025,1757227841271,-200.89624144,0.00013698,2]
[384004027,1757227841280,-480.0,0.00013698,2]
[384004030,1757227841290,-481.23725539,0.00013698,2]
[384004031,1757227841299,-480.0,0.00013698,2]
[384004033,1757227841309,-521.3839302,0.00013698,2]
[384004035,1757227841319,-480.0,0.00013698,2]
[384004038,1757227841328,-687.43,0.00013698,2]
[384004039,1757227841337,-480.0,0.00013698,2]
[384004041,1757227841347,-1105.08,0.00013698,2]
[384004043,1757227841356,-484.86472151,0.00013698,2]
[384004045,1757227841365,-480.0,0.00013698,2]
[384004047,1757227841374,-423.83221573,0.00013698,2]
[384004049,1757227841384,-480.0,0.00013698,2]
[384004051,1757227841393,-419.70980611,0.00013698,2]
[384004053,1757227841403,-480.0,0.00013698,2]
[384004055,1757227841413,-480.0,0.00013698,2]
[384004057,1757227841422,-584.5,0.00013698,2]
[384004059,1757227841432,-480.0,0.00013698,2]
[384004061,1757227841442,-480.0,0.00013698,2]
[384004063,1757227841452,-480.0,0.00013698,2]
[384004066,1757227841462,-491.30610176,0.00013698,2]
[384004067,1757227841472,-480.0,0.00013698,2]
[384004069,1757227841483,-480.0,0.00013698,2]
[384004071,1757227841492,-480.0,0.00013698,2]
[384004074,1757227841503,-704.31,0.00013698,2]
[384004076,1757227841513,-514.01,0.00013698,2]
[384004078,1757227841522,-480.0,0.00013698,2]
[384004079,1757227841531,-480.0,0.00013698,2]
[384004081,1757227841541,-480.0,0.00013698,2]
[384004083,1757227841550,-480.0,0.00013698,2]
[384004086,1757227841562,-480.0,0.00013698,2]
[384004088,1757227841571,-480.0,0.00013698,2]
[384004090,1757227841581,-480.0,0.00013698,2]
[384004091,1757227841591,-480.0,0.00013698,2]
[384004093,1757227841600,-319.47710112,0.00013698,2]
[384004095,1757227841610,-480.0,0.00013698,2]
[384004097,1757227841620,-500.0,0.00013698,2]
[384004099,1757227841630,-480.0,0.00013698,2]
[384004101,1757227841639,-480.0,0.00013698,2]
[384004103,1757227841649,-817.81,0.00013698,2]
[384004105,1757227841658,-480.0,0.00013698,2]
[384004107,1757227841667,-157.0,0.00013698,2]
[384004109,1757227841677,-518.42549044,0.00013698,2]
[384004111,1757227841687,-525.40940642,0.00013698,2]
[384004113,1757227841696,-176.05381109,0.00013698,2]
[384004115,1757227841706,-317.8982504,0.00013698,2]
[384004117,1757227841716,-480.0,0.00013698,2]
[384004119,1757227841725,-480.0,0.00013698,2]
[384004121,1757227841735,-589.07,0.00013698,2]
[384004123,1757227841744,-480.0,0.00013698,2]
[384004125,1757227841753,-480.0,0.00013698,2]
[384004127,1757227841763,-164.882557,0.00013698,2]
[384004129,1757227841772,-480.0,0.00013698,2]
[384004131,1757227841782,-480.0,0.00013698,2]
[384004133,1757227841791,-480.0,0.00013698,2]
[384004135,1757227841801,-480.0,0.00013698,2]
[384004137,1757227841810,-480.0,0.00013698,2]
[384004139,1757227841820,-493.00250584,0.00013698,2]
[384004141,1757227841829,-480.0,0.00013698,2]
[384004143,1757227841839,-480.0,0.00013698,2]
[384004145,1757227841849,-480.0,0.00013698,2]
[384004147,1757227841859,-1095.76,0.00013698,2]
[384004149,1757227841868,-480.0,0.00013698,2]
[384004151,1757227841878,-627.05,0.00013698,2]
[384004153,1757227841887,-952.72,0.00013698,2]
[384004155,1757227841896,-480.0,0.00013698,2]
[384004157,1757227841906,-480.0,0.00013698,2]
[384004159,1757227841915,-937.59,0.00013698,2]
[384004161,1757227841924,-480.0,0.00013698,2]
[384004163,1757227841934,-1225.02,0.00013698,2]
[384004165,1757227841943,-480.0,0.00013698,2]
[384004167,1757227841952,-806.41,0.00013698,2]
[384004169,1757227841962,-488.72033575,0.00013698,2]
[384004171,1757227841971,-590.45,0.00013698,2]
[384004173,1757227841981,-480.0,0.00013698,2]
[384004175,1757227841990,-480.0,0.00013698,2]
[384004177,1757227842000,-480.0,0.00013698,2]
[384004179,1757227842009,-578.84,0.00013698,2]
[384004181,1757227842018,-482.67695008,0.00013698,2]
[384004183,1757227842028,-480.0,0.00013698,2]
[384004185,1757227842037,-591.22910917,0.00013698,2]
[384004187,1757227842047,-480.0,0.00013698,2]
[384004189,1757227842056,-480.0,0.00013698,2]
[384004191,1757227842066,-272.00591444,0.00013698,2]
[384004193,1757227842075,-484.64092514,0.00013698,2]
[384004195,1757227842085,-480.0,0.00013698,2]
[384004197,1757227842094,-480.0,0.00013698,2]
[384004199,1757227842103,-480.0,0.00013698,2]
[384004201,1757227842112,-952.01,0.00013698,2]
[384004203,1757227842121,-483.34024859,0.00013698,2]
[384004205,1757227842131,-480.0,0.00013698,2]
[384004207,1757227842140,-480.0,0.00013698,2]
[384004209,1757227842149,-482.18356988,0.00013698,2]
[384004211,1757227842159,-480.0,0.00013698,2]
[384004213,1757227842168,-480.0,0.00013698,2]
[384004215,1757227842178,-482.81032973,0.00013698,2]
[384004217,1757227842187,-1075.49,0.00013698,2]
[384004219,1757227842197,-480.0,0.00013698,2]
[384004221,1757227842206,-487.19055727,0.00013698,2]
[384004223,1757227842216,-480.0,0.00013698,2]
[384004225,1757227842225,-480.0,0.00013698,2]
[384004227,1757227842235,-509.74625437,0.00013698,2]
[384004239,1757227842341,-480.0,0.00013698,2]
[384004242,1757227842351,-1439.39,0.00013698,2]
[384004245,1757227842360,-480.0,0.00013698,2]
[384004248,1757227842370,-609.64,0.00013698,2]
[384004251,1757227842379,-636.67,0.00013698,2]
[384004255,1757227842389,-482.09,0.00013698,2]
[384004258,1757227842399,-480.0,0.00013698,2]
[384004260,1757227842408,-480.0,0.00013698,2]
[384004262,1757227842418,-480.0,0.00013698,2]
[384004264,1757227842427,-531.13852828,0.00013698,2]
[384004266,1757227842437,-480.0,0.00013698,2]
[384004268,1757227842447,-480.0,0.00013698,2]
[384004270,1757227842456,-480.0,0.00013698,2]
[384004272,1757227842466,-489.01416016,0.00013698,2]
[384004274,1757227842476,-724.79639238,0.00013698,2]
[384004276,1757227842486,-553.95,0.00013698,2]
[384004278,1757227842496,-480.0,0.00013698,2]
[384004280,1757227842506,-480.0,0.00013698,2]
[384004282,1757227842516,-480.0,0.00013698,2]
[384004284,1757227842525,-480.0,0.00013698,2]
[384004286,1757227842535,-23438.86688758,0.00013698,2]
[384004290,1757227842554,-3216.50955113,0.00013698,2]
[384004338,1757227842943,-256.2,0.00013698,2]
[384004355,1757227843077,-3374.84356129,0.00013698,2]
[384004358,1757227843086,-816.99,0.00013698,2]
[384004361,1757227843097,-966.42,0.00013698,2]
[384004364,1757227843107,-50.13313578,0.00013698,2]
[384004667,1757227845938,-429.86686422,0.00013698,2]
[384004670,1757227845948,-480.0,0.00013698,2]
[384004672,1757227845958,-219.27070386,0.00013698,2]
[384004674,1757227845968,-480.0,0.00013698,2]
[384004676,1757227845977,-480.0,0.00013698,2]
[384004678,1757227845987,-480.0,0.00013698,2]
[384004680,1757227845996,-480.0,0.00013698,2]
[384004682,1757227846005,-1123.12181931,0.00013698,2]
[384004684,1757227846017,-22.31818069,0.00013698,2]
[384004686,1757227846026,-487.78627884,0.00013698,2]
[384004688,1757227846036,-839.29,0.00013698,2]
[384004690,1757227846046,-480.0,0.00013698,2]
[384004692,1757227846059,-482.60717759,0.00013698,2]
[384004694,1757227846069,-481.16977866,0.00013698,2]
[384004696,1757227846078,-480.0,0.00013698,2]
[384004698,1757227846087,-947.82,0.00013698,2]
[384004700,1757227846096,-480.0,0.00013698,2]
[384004702,1757227846105,-480.0,0.00013698,2]
[384004704,1757227846114,-480.0,0.00013698,2]
[384004706,1757227846123,-3311.26,0.00013698,2]
[384004708,1757227846133,-1113.11,0.00013698,2]
[384004710,1757227846142,-578.62,0.00013698,2]
[384004712,1757227846151,-480.0,0.00013698,2]
[384004714,1757227846160,-483.63718701,0.00013698,2]
[384004716,1757227846169,-480.0,0.00013698,2]
[384004718,1757227846179,-480.0,0.00013698,2]
[384004720,1757227846188,-984.09,0.00013698,2]
[384004722,1757227846198,-5924.12,0.00013698,2]
[384004724,1757227846207,-480.0,0.00013698,2]
[384004726,1757227846216,-1072.17,0.00013698,2]
[384004728,1757227846226,-482.13806269,0.00013698,2]
[384004730,1757227846235,-480.0,0.00013698,2]
[384004732,1757227846244,-480.0,0.00013698,2]
[384004734,1757227846253,-480.0,0.00013698,2]
[384004736,1757227846263,-480.0,0.00013698,2]
[384004738,1757227846272,-2032.11,0.00013698,2]
[384004740,1757227846282,-480.0,0.00013698,2]
[384004742,1757227846291,-480.0,0.00013698,2]
[384004744,1757227846301,-480.0,0.00013698,2]
[384004746,1757227846310,-480.0,0.00013698,2]
[384004748,1757227846320,-480.0,0.00013698,2]
[384004750,1757227846329,-819.96,0.00013698,2]
[384004752,1757227846339,-480.0,0.00013698,2]
[384004754,1757227846348,-480.0,0.00013698,2]
[384004756,1757227846358,-481.426817,0.00013698,2]
[384004758,1757227846367,-480.0,0.00013698,2]
[384004760,1757227846377,-480.0,0.00013698,2]
[384004762,1757227846388,-500.0,0.00013698,2]
[384004764,1757227846398,-500.0,0.00013698,2]
[384004766,1757227846408,-500.0,0.00013698,2]
[384004768,1757227846417,-500.0,0.00013698,2]
[384004771,1757227846427,-500.0,0.00013698,2]
[384004773,1757227846437,-480.0,0.00013698,2]
[384004775,1757227846447,-500.0,0.00013698,2]
[384004777,1757227846457,-500.0,0.00013698,2]
[384004779,1757227846467,-477.84153113,0.00013698,2]
[384004781,1757227846480,-22.15846887,0.00013698,2]
[384004783,1757227846489,-480.0,0.00013698,2]
[384004785,1757227846499,-108.92674336,0.00013698,2]
[384004787,1757227846510,-3069.16325664,0.00013698,2]
[384004789,1757227846521,-480.0,0.00013698,2]
[384004791,1757227846531,-480.0,0.00013698,2]
[384004793,1757227846540,-480.0,0.00013698,2]
[384004795,1757227846550,-486.95784566,0.00013698,2]
[384004797,1757227846560,-480.0,0.00013698,2]
[384004799,1757227846569,-489.64376981,0.00013698,2]
[384004801,1757227846578,-480.0,0.00013698,2]
[384004803,1757227846588,-480.0,0.00013698,2]
[384004805,1757227846598,-556.69,0.00013698,2]
[384004808,1757227846608,-480.0,0.00013698,2]
[384004810,1757227846617,-1000.0,0.00013698,2]
[384004811,1757227846627,-341.46,0.00013698,2]
[384004822,1757227846744,-480.0,0.00013698,2]
[384004824,1757227846754,-480.0,0.00013698,2]
[384004826,1757227846763,-480.0,0.00013698,2]
[384004828,1757227846773,-480.0,0.00013698,2]
[384004830,1757227846782,-405.55043493,0.00013698,2]
[384004832,1757227846794,-74.44956507,0.00013698,2]
[384004834,1757227846804,-480.0,0.00013698,2]
[384004836,1757227846813,-563.94,0.00013698,2]
[384004838,1757227846823,-480.0,0.00013698,2]
[384004840,1757227846832,-759.70877199,0.00013698,2]
[384004842,1757227846844,-1181.57122801,0.00013698,2]
[384004844,1757227846853,-512.87,0.00013698,2]
[384004846,1757227846862,-1183.72,0.00013698,2]
[384004848,1757227846871,-351.22170609,0.00013698,2]
[384004850,1757227846880,-482.047496,0.00013698,2]
[384004852,1757227846890,-480.0,0.00013698,2]
[384004854,1757227846899,-852.2,0.00013698,2]
[384004857,1757227846909,-5603.68,0.00013698,2]
[384004859,1757227846918,-157.0,0.00013698,2]
[384004860,1757227846929,-480.0,0.00013698,2]
[384004863,1757227846938,-480.0,0.00013698,2]
[384004864,1757227846948,-157.0,0.00013698,2]
[384004866,1757227846968,-35.69472811,0.00013698,2]
[384004871,1757227847012,-1994.02012391,0.00013561,2]
[384004873,1757227847022,-444.30527189,0.00013698,2]
[384004875,1757227847032,-228.84626082,0.00013698,2]
[384004877,1757227847042,-642.0,0.00013698,2]
[384004879,1757227847051,-500.0,0.00013698,2]
[384004881,1757227847060,-480.0,0.00013698,2]
[384004883,1757227847074,-600.35,0.00013698,2]
[384004885,1757227847083,-714.54,0.00013698,2]
[384004887,1757227847092,-623.23,0.00013698,2]
[384004889,1757227847101,-480.0,0.00013698,2]
[384004891,1757227847111,-480.0,0.00013698,2]
[384004893,1757227847120,-2192.78,0.00013698,2]
[384004895,1757227847129,-480.0,0.00013698,2]
[384004897,1757227847138,-480.0,0.00013698,2]
[384004899,1757227847149,-480.0,0.00013698,2]
[384004901,1757227847158,-480.0,0.00013698,2]
[384004903,1757227847167,-480.0,0.00013698,2]
[384004905,1757227847177,-1162.23,0.00013698,2]
[384004907,1757227847186,-819.87,0.00013698,2]
[384004909,1757227847195,-480.0,0.00013698,2]
[384004911,1757227847205,-481.60744015,0.00013698,2]
[384004913,1757227847214,-480.0,0.00013698,2]
[384004915,1757227847224,-480.0,0.00013698,2]
[384004917,1757227847233,-480.0,0.00013698,2]
[384004919,1757227847243,-480.0,0.00013698,2]
[384004921,1757227847252,-480.0,0.00013698,2]
[384004923,1757227847261,-1088.24,0.00013698,2]
[384004925,1757227847271,-1420.71374341,0.00013698,2]
[384010963,1757228639551,2385.85,0.00013171,2]
[384010964,1757228644536,250.0,0.00013055,2]
[384010965,1757228668575,250.0,0.00013055,2]
[384010973,1757228711848,250.0,0.00012898,2]
[384011031,1757229032313,-537.24,0.00013326,2]
[384011036,1757229032444,-689.81803304,0.00013326,2]
[384011037,1757229032581,-22.91071254,0.00013596,2]
[384011038,1757229032593,-277.08928746,0.00013596,2]
[384011039,1757229032602,-20651.75634294,0.00013597,2]
[384011040,1757229032612,-589.84899902,0.00013598,2]
[384011041,1757229032621,-2186.17485202,0.00013598,2]
[384011042,1757229032631,-409.0,0.00013648,2]
[384011043,1757229032641,-589.84899901,0.00013667,2]
[384011044,1757229032650,-262.69818508,0.00013669,2]
[384011045,1757229032659,-12242.1244459,0.0001369,2]
[384011046,1757229032668,-500.0,0.00013697,2]
[384011047,1757229032677,-370.57676148,0.00013697,2]
[384011048,1757229032686,-547.71147361,0.00013697,2]
[384011049,1757229032695,-247.92744672,0.00013697,2]
[384011050,1757229032704,-500.0,0.00013697,2]
[384011051,1757229032714,-413.28254991,0.00013697,2]
[384011052,1757229032723,-277.93146724,0.00013697,2]
[384011053,1757229032733,-500.0,0.00013697,2]
[384011054,1757229032742,-500.0,0.00013697,2]
[384011055,1757229032751,-500.0,0.00013697,2]
[384011056,1757229032761,-500.0,0.00013697,2]
[384011057,1757229032771,-500.0,0.00013697,2]
[384011058,1757229032781,-500.0,0.00013697,2]
[384011059,1757229032791,-500.0,0.00013697,2]
[384011060,1757229032800,-500.0,0.00013697,2]
[384011061,1757229032810,-500.0,0.00013697,2]
[384011062,1757229032820,-500.0,0.00013697,2]
[384011063,1757229032830,-500.0,0.00013697,2]
[384011064,1757229032840,-464.93558556,0.00013697,2]
[384011065,1757229032850,-500.0,0.00013697,2]
[384011066,1757229032860,-500.0,0.00013697,2]
[384011067,1757229032870,-500.0,0.00013697,2]
[384011068,1757229032880,-500.0,0.00013697,2]
[384011069,1757229032891,-500.0,0.00013697,2]
[384011070,1757229032901,-500.0,0.00013697,2]
[384011071,1757229032911,-500.0,0.00013697,2]
[384011072,1757229032920,-500.0,0.00013697,2]
[384011073,1757229032930,-500.0,0.00013697,2]
[384011074,1757229032939,-283.5305719,0.00013697,2]
[384011075,1757229032949,-500.0,0.00013697,2]
[384011076,1757229032959,-500.0,0.00013697,2]
[384011077,1757229032970,-500.0,0.00013697,2]
[384011078,1757229032979,-500.0,0.00013697,2]
[384011079,1757229032989,-176.10079909,0.00013697,2]
[384011080,1757229032999,-500.0,0.00013697,2]
[384011081,1757229033009,-176.10079909,0.00013697,2]
[384011082,1757229033020,-500.0,0.00013697,2]
[384011083,1757229033030,-176.10079909,0.00013697,2]
[384011084,1757229033040,-500.0,0.00013697,2]
[384011085,1757229033050,-176.10079909,0.00013697,2]
[384011086,1757229033059,-500.0,0.00013697,2]
[384011087,1757229033069,-176.10079909,0.00013697,2]
[384011088,1757229033079,-500.0,0.00013697,2]
[384011089,1757229033089,-176.10079909,0.00013697,2]
[384011090,1757229033099,-500.0,0.00013697,2]
[384011091,1757229033110,-176.10079909,0.00013697,2]
[384011092,1757229033120,-500.0,0.00013697,2]
[384011093,1757229033130,-176.10079909,0.00013697,2]
[384011094,1757229033139,-500.0,0.00013697,2]
[384011095,1757229033149,-176.10079909,0.00013697,2]
[384011096,1757229033159,-500.0,0.00013697,2]
[384011097,1757229033168,-176.10079909,0.00013697,2]
[384011098,1757229033179,-724.79639238,0.00013698,2]
[384011099,1757229033188,-480.0,0.00013698,2]
[384011100,1757229033199,-392.67243823,0.00013698,2]
[384011101,1757229033208,-480.0,0.00013698,2]
[384011102,1757229033218,-480.0,0.00013698,2]
[384011103,1757229033228,-480.0,0.00013698,2]
[384011104,1757229033238,-480.0,0.00013698,2]
[384011105,1757229033247,-399.56277113,0.00013698,2]
[384011106,1757229033257,-480.0,0.00013698,2]
[384011107,1757229033267,-480.0,0.00013698,2]
[384011108,1757229033277,-480.0,0.00013698,2]
[384011109,1757229033287,-480.0,0.00013698,2]
[384011110,1757229033296,-480.0,0.00013698,2]
[384011111,1757229033306,-480.0,0.00013698,2]
[384011112,1757229033315,-497.17,0.00013698,2]
[384011113,1757229033324,-625.22214754,0.00013698,2]
[384011114,1757229033334,-548.36,0.00013698,2]
[384011115,1757229033343,-480.0,0.00013698,2]
[384011116,1757229033353,-480.0,0.00013698,2]
[384011117,1757229033363,-333.76312776,0.00013698,2]
[384011118,1757229033372,-500.0,0.00013698,2]
[384011119,1757229033381,-480.0,0.00013698,2]
[384011120,1757229033390,-480.0,0.00013698,2]
[384011121,1757229033399,-485.93949125,0.00013698,2]
[384011122,1757229033409,-498.58,0.00013698,2]
[384011123,1757229033418,-480.0,0.00013698,2]
[384011124,1757229033427,-480.0,0.00013698,2]
[384011125,1757229033436,-952.34,0.00013698,2]
[384011126,1757229033446,-480.0,0.00013698,2]
[384011127,1757229033455,-1059.04,0.00013698,2]
[384011128,1757229033465,-480.0,0.00013698,2]
[384011129,1757229033474,-501.14082228,0.00013698,2]
[384011130,1757229033485,-480.0,0.00013698,2]
[384011131,1757229033495,-480.0,0.00013698,2]
[384011132,1757229033505,-624.24,0.00013698,2]
[384011133,1757229033515,-480.0,0.00013698,2]
[384011134,1757229033525,-620.14,0.00013698,2]
[384011135,1757229033535,-480.0,0.00013698,2]
[384011136,1757229033544,-480.0,0.00013698,2]
[384011137,1757229033554,-462.41429711,0.00013698,2]
[384011138,1757229033563,-480.0,0.00013698,2]
[384011139,1757229033574,-480.0,0.00013698,2]
[384011140,1757229033583,-480.0,0.00013698,2]
[384011141,1757229033593,-480.0,0.00013698,2]
[384011142,1757229033602,-552.59,0.00013698,2]
[384011143,1757229033612,-670.14,0.00013698,2]
[384011144,1757229033622,-825.71,0.00013698,2]
[384011145,1757229033631,-157.0,0.00013698,2]
[384011146,1757229033642,-747.71,0.00013698,2]
[384011147,1757229033653,-480.0,0.00013698,2]
[384011148,1757229033663,-480.0,0.00013698,2]
[384011149,1757229033673,-480.0,0.00013698,2]
[384011150,1757229033682,-480.0,0.00013698,2]
[384011151,1757229033692,-480.0,0.00013698,2]
[384011152,1757229033702,-480.0,0.00013698,2]
[384011153,1757229033711,-480.0,0.00013698,2]
[384011154,1757229033721,-718.79,0.00013698,2]
[384011155,1757229033731,-480.0,0.00013698,2]
[384011156,1757229033741,-480.0,0.00013698,2]
[384011157,1757229033754,-258.06439671,0.00013698,2]
[384011158,1757229033769,-221.93560329,0.00013698,2]
[384011159,1757229033779,-368.7765931,0.00013698,2]
[384011160,1757229033793,-111.2234069,0.00013698,2]
[384011161,1757229033803,-480.0,0.00013698,2]
[384011162,1757229033812,-214.28960872,0.00013698,2]
[384011181,1757229038183,-265.71039128,0.00013698,2]
[384011195,1757229038304,-36.06334126,0.00013698,2]
[384011198,1757229038320,-443.93665874,0.00013698,2]
[384011200,1757229038330,-480.0,0.00013698,2]
[384011202,1757229038339,-151.0,0.00013698,2]
[384011204,1757229038348,-151.0,0.00013698,2]
[384011206,1757229038357,-151.0,0.00013698,2]
[384011208,1757229038366,-186.485189,0.00013698,2]
[384011210,1757229038376,-480.0,0.00013698,2]
[384011212,1757229038385,-480.0,0.00013698,2]
[384011214,1757229038395,-480.0,0.00013698,2]
[384011216,1757229038404,-480.0,0.00013698,2]
[384011218,1757229038414,-480.0,0.00013698,2]
[384011220,1757229038423,-207.778645,0.00013698,2]
[384011222,1757229038433,-480.0,0.00013698,2]
[384011224,1757229038443,-480.0,0.00013698,2]
[384011226,1757229038452,-483.44340584,0.00013698,2]
[384011228,1757229038462,-480.0,0.00013698,2]
[384011230,1757229038472,-480.0,0.00013698,2]
[384011232,1757229038482,-480.0,0.00013698,2]
[384011234,1757229038493,-555.12805713,0.00013698,2]
[384011236,1757229038503,-480.0,0.00013698,2]
[384011238,1757229038512,-480.0,0.00013698,2]
[384011240,1757229038522,-480.0,0.00013698,2]
[384011242,1757229038531,-480.0,0.00013698,2]
[384011244,1757229038541,-480.0,0.00013698,2]
[384011246,1757229038550,-480.0,0.00013698,2]
[384011248,1757229038559,-480.0,0.00013698,2]
[384011250,1757229038568,-500.34,0.00013698,2]
[384011252,1757229038577,-734.97,0.00013698,2]
[384011254,1757229038586,-480.0,0.00013698,2]
[384011256,1757229038596,-480.0,0.00013698,2]
[384011258,1757229038605,-151.0,0.00013698,2]
[384011259,1757229038614,-151.0,0.00013698,2]
[384011261,1757229038623,-151.0,0.00013698,2]
[384011263,1757229038633,-480.0,0.00013698,2]
[384011266,1757229038642,-151.0,0.00013698,2]
[384011267,1757229038651,-151.0,0.00013698,2]
[384011269,1757229038660,-151.0,0.00013698,2]
[384011271,1757229038670,-151.0,0.00013698,2]
[384011274,1757229038679,-151.0,0.00013698,2]
[384011276,1757229038689,-151.0,0.00013698,2]
[384011278,1757229038698,-151.0,0.00013698,2]
[384011279,1757229038707,-151.0,0.00013698,2]
[384011281,1757229038717,-181.936946,0.00013698,2]
[384011284,1757229038727,-480.0,0.00013698,2]
[384011285,1757229038737,-1000.0,0.00013698,2]
[384011288,1757229038746,-1000.0,0.00013698,2]
[384011290,1757229038762,-513.06,0.00013698,2]
[384011292,1757229038772,-480.0,0.00013698,2]
[384011293,1757229038781,-480.0,0.00013698,2]
[384011295,1757229038790,-480.0,0.00013698,2]
[384011297,1757229038801,-225.51335129,0.00013698,2]
[384011299,1757229038810,-480.0,0.00013698,2]
[384011301,1757229038820,-480.0,0.00013698,2]
[384011303,1757229038830,-480.0,0.00013698,2]
[384011305,1757229038840,-487.80082227,0.00013698,2]
[384011307,1757229038849,-494.69,0.00013698,2]
[384011309,1757229038859,-321.60384679,0.00013698,2]
[384011311,1757229038869,-480.0,0.00013698,2]
[384011313,1757229038879,-480.0,0.00013698,2]
[384011315,1757229038890,-480.0,0.00013698,2]
[384011317,1757229038901,-480.0,0.00013698,2]
[384011319,1757229038911,-480.0,0.00013698,2]
[384011321,1757229038921,-514.36,0.00013698,2]
[384011323,1757229038930,-480.0,0.00013698,2]
[384011325,1757229038940,-993.02,0.00013698,2]
[384011327,1757229038951,-157.0,0.00013698,2]
[384011329,1757229038961,-480.0,0.00013698,2]
[384011331,1757229038973,-486.58002458,0.00013698,2]
[384011334,1757229038985,-274.32632424,0.00013698,2]
[384011336,1757229038995,-480.0,0.00013698,2]
[384011338,1757229039005,-480.0,0.00013698,2]
[384011339,1757229039015,-978.53,0.00013698,2]
[384011342,1757229039025,-480.0,0.00013698,2]
[384011344,1757229039034,-480.0,0.00013698,2]
[384011346,1757229039045,-488.16933254,0.00013698,2]
[384011348,1757229039055,-494.4,0.00013698,2]
[384011350,1757229039064,-614.72,0.00013698,2]
[384011352,1757229039074,-480.0,0.00013698,2]
[384011354,1757229039083,-852.81,0.00013698,2]
[384011356,1757229039093,-480.0,0.00013698,2]
[384011358,1757229039102,-843.73,0.00013698,2]
[384011360,1757229039113,-480.0,0.00013698,2]
[384011362,1757229039124,-480.0,0.00013698,2]
[384011364,1757229039133,-554.51,0.00013698,2]
[384011366,1757229039143,-480.0,0.00013698,2]
[384011368,1757229039152,-480.0,0.00013698,2]
[384011370,1757229039162,-480.0,0.00013698,2]
[384011372,1757229039171,-624.53,0.00013698,2]
[384011374,1757229039181,-151.581267,0.00013698,2]
[384011376,1757229039190,-480.0,0.00013698,2]
[384011378,1757229039199,-480.0,0.00013698,2]
[384011379,1757229039208,-181.37072202,0.00013698,2]
[384011381,1757229039218,-480.0,0.00013698,2]
[384011384,1757229039227,-348.1399198,0.00013698,2]
[384011386,1757229039237,-480.0,0.00013698,2]
[384011387,1757229039247,-1070.68,0.00013698,2]
[384011388,1757229039257,-480.0,0.00013698,2]
[384011389,1757229039266,-480.0,0.00013698,2]
[384011390,1757229039276,-1110.1,0.00013698,2]
[384011391,1757229039286,-481.41411573,0.00013698,2]
[384011392,1757229039295,-480.0,0.00013698,2]
[384011393,1757229039304,-480.0,0.00013698,2]
[384011394,1757229039314,-480.0,0.00013698,2]
[384011395,1757229039323,-480.0,0.00013698,2]
[384011396,1757229039332,-480.91254341,0.00013698,2]
[384011397,1757229039341,-480.0,0.00013698,2]
[384011398,1757229039361,-480.0,0.00013698,2]
[384011399,1757229039370,-480.0,0.00013698,2]
[384011400,1757229039380,-480.0,0.00013698,2]
[384011401,1757229039391,-282.05880616,0.00013698,2]
[384011771,1757229043485,-378.86119384,0.00013698,2]
[384011773,1757229043496,-453.56521256,0.00013698,2]
[384011776,1757229043510,-161.94478744,0.00013698,2]
[384011778,1757229043520,-542.9682131,0.00013698,2]